[Event "*** Titled Tuesday Blitz"]
[Site "Chess.com"]
[Date "2020.05.19"]
[Round "2"]
[White "LimeInTheCoconut"]
[Black "Igrok3069"]
[Result "0-1"]
[WhiteElo "2502"]
[BlackElo "2763"]
[TimeControl "180+1"]
[EndTime "12:18:36 PDT"]
[Termination "Igrok3069 won on time"]

1. d4 {[%clk 0:03:00.9]} 1... d5 {[%clk 0:02:59.5]} 2. c4 {[%clk 0:03:00.8]}
2... c6 {[%clk 0:02:59.5]} 3. Nf3 {[%clk 0:03:01.1]} 3... Nf6 {[%clk 0:02:59.8]}
4. Nc3 {[%clk 0:03:00.3]} 4... e6 {[%clk 0:03:00]} 5. Bg5 {[%clk 0:02:59.5]}
5... Nbd7 {[%clk 0:02:59.7]} 6. e3 {[%clk 0:02:59.3]} 6... Qa5 {[%clk
0:02:58.6]} 7. cxd5 {[%clk 0:02:54.7]} 7... Nxd5 {[%clk 0:02:58.2]} 8. Qd2
{[%clk 0:02:54.9]} 8... Bb4 {[%clk 0:02:57.4]} 9. Rc1 {[%clk 0:02:54.5]} 9... h6
{[%clk 0:02:56.7]} 10. Bh4 {[%clk 0:02:52.1]} 10... b6 {[%clk 0:02:56.8]} 11. a3
{[%clk 0:02:49.1]} 11... Bxc3 {[%clk 0:02:56.3]} 12. bxc3 {[%clk 0:02:49.1]}
12... c5 {[%clk 0:02:57.2]} 13. c4 {[%clk 0:02:45.3]} 13... Qxd2+ {[%clk
0:02:56.3]} 14. Nxd2 {[%clk 0:02:42.7]} 14... Ne7 {[%clk 0:02:57.2]} 15. f3
{[%clk 0:02:34.9]} 15... Ba6 {[%clk 0:02:56.5]} 16. Be2 {[%clk 0:02:31.5]} 16...
Rc8 {[%clk 0:02:55]} 17. Bf2 {[%clk 0:02:13.8]} 17... cxd4 {[%clk 0:02:49.1]}
18. exd4 {[%clk 0:02:13.6]} 18... O-O {[%clk 0:02:46.5]} 19. O-O {[%clk
0:02:11.5]} 19... Rfd8 {[%clk 0:02:45.6]} 20. Rfd1 {[%clk 0:02:03.2]} 20... Nf5
{[%clk 0:02:28.1]} 21. g4 {[%clk 0:01:53.7]} 21... Nd6 {[%clk 0:02:27]} 22. Kf1
{[%clk 0:01:49.5]} 22... Rc6 {[%clk 0:02:23.5]} 23. Rc2 {[%clk 0:01:42.6]} 23...
Rdc8 {[%clk 0:02:21]} 24. Rdc1 {[%clk 0:01:41.8]} 24... f5 {[%clk 0:01:54.8]}
25. h3 {[%clk 0:01:38.4]} 25... Nf6 {[%clk 0:01:47.6]} 26. Bg3 {[%clk
0:01:27.1]} 26... g5 {[%clk 0:01:44.3]} 27. Ke1 {[%clk 0:00:46.4]} 27... f4
{[%clk 0:01:36.2]} 28. Bf2 {[%clk 0:00:46.3]} 28... Nd5 {[%clk 0:01:23.3]} 29.
cxd5 {[%clk 0:00:30.7]} 29... Rxc2 {[%clk 0:01:23.2]} 30. Rxc2 {[%clk
0:00:31.1]} 30... Rxc2 {[%clk 0:01:23.3]} 31. Bxa6 {[%clk 0:00:31.4]} 31... exd5
{[%clk 0:01:20.9]} 32. a4 {[%clk 0:00:14.6]} 32... Ra2 {[%clk 0:01:18.9]} 33.
Bb5 {[%clk 0:00:06.7]} 33... Nxb5 {[%clk 0:01:17.9]} 34. axb5 {[%clk 0:00:07.6]}
34... Rb2 {[%clk 0:01:13.3]} 35. Ke2 {[%clk 0:00:07.1]} 35... Rxb5 {[%clk
0:01:11.6]} 36. Kd3 {[%clk 0:00:05.1]} 36... Rb2 {[%clk 0:01:07.8]} 37. h4
{[%clk 0:00:04.9]} 37... Ra2 {[%clk 0:01:01.5]} 38. hxg5 {[%clk 0:00:04.5]}
38... hxg5 {[%clk 0:01:01]} 39. Kc3 {[%clk 0:00:04.9]} 39... Kf7 {[%clk
0:00:52.7]} 40. Be1 {[%clk 0:00:04]} 40... Ra1 {[%clk 0:00:52]} 41. Bf2 {[%clk
0:00:02.9]} 41... Ke6 {[%clk 0:00:48.4]} 42. Kc2 {[%clk 0:00:03]} 42... Kd7
{[%clk 0:00:43.4]} 43. Kb2 {[%clk 0:00:03.1]} 43... Rh1 {[%clk 0:00:40.4]} 44.
Kc2 {[%clk 0:00:02.2]} 44... Kc6 {[%clk 0:00:39.9]} 45. Kd3 {[%clk 0:00:01.6]}
45... a5 {[%clk 0:00:38.6]} 46. Nb3 {[%clk 0:00:01.1]} 46... Rf1 {[%clk
0:00:34.9]} 0-1

[Event "*** Titled Tuesday Blitz"]
[Site "Chess.com"]
[Date "2020.05.19"]
[Round "2"]
[White "Jagerrmeisterr"]
[Black "AnkitGajwa"]
[Result "0-1"]
[WhiteElo "2651"]
[BlackElo "2448"]
[TimeControl "180+1"]
[EndTime "12:18:36 PDT"]
[Termination "AnkitGajwa won by resignation"]

1. e4 {[%clk 0:03:00.9]} 1... c5 {[%clk 0:02:20.8]} 2. Nc3 {[%clk 0:02:59.3]}
2... Nc6 {[%clk 0:02:20.5]} 3. g3 {[%clk 0:02:59.7]} 3... g6 {[%clk 0:02:20.4]}
4. Bg2 {[%clk 0:03:00.3]} 4... Bg7 {[%clk 0:02:20.9]} 5. d3 {[%clk 0:03:01.2]}
5... d6 {[%clk 0:02:17.5]} 6. Be3 {[%clk 0:03:01.4]} 6... e5 {[%clk 0:02:17.1]}
7. Nh3 {[%clk 0:03:00.5]} 7... Nge7 {[%clk 0:02:17]} 8. O-O {[%clk 0:03:00.7]}
8... O-O {[%clk 0:02:16.7]} 9. Qd2 {[%clk 0:03:01.1]} 9... Be6 {[%clk
0:02:15.7]} 10. f4 {[%clk 0:02:50.9]} 10... exf4 {[%clk 0:02:10.7]} 11. Nxf4
{[%clk 0:02:50.4]} 11... Ne5 {[%clk 0:02:09.5]} 12. h3 {[%clk 0:02:45.8]} 12...
Qd7 {[%clk 0:01:54.9]} 13. Nxe6 {[%clk 0:02:39.4]} 13... fxe6 {[%clk 0:01:53.1]}
14. Bh6 {[%clk 0:02:39.5]} 14... N7c6 {[%clk 0:01:50.8]} 15. Bxg7 {[%clk
0:02:35.8]} 15... Qxg7 {[%clk 0:01:48.9]} 16. Ne2 {[%clk 0:02:35.9]} 16... Nd4
{[%clk 0:01:43.6]} 17. Nxd4 {[%clk 0:02:06.8]} 17... cxd4 {[%clk 0:01:43.3]} 18.
c3 {[%clk 0:02:07.3]} 18... Nc6 {[%clk 0:01:37.8]} 19. h4 {[%clk 0:01:53.6]}
19... Qe5 {[%clk 0:01:36]} 20. Rf4 {[%clk 0:01:52.9]} 20... Rxf4 {[%clk
0:01:10.9]} 21. gxf4 {[%clk 0:01:44.1]} 21... Qh5 {[%clk 0:01:09.9]} 22. Qf2
{[%clk 0:01:44]} 22... dxc3 {[%clk 0:01:06.3]} 23. bxc3 {[%clk 0:01:44]} 23...
Rf8 {[%clk 0:01:05.8]} 24. Rf1 {[%clk 0:01:36.7]} 24... Kh8 {[%clk 0:00:42.9]}
25. d4 {[%clk 0:01:11.7]} 25... Qg4 {[%clk 0:00:41.4]} 26. Kh2 {[%clk
0:01:00.2]} 26... e5 {[%clk 0:00:40.4]} 27. dxe5 {[%clk 0:00:42.1]} 27... dxe5
{[%clk 0:00:40.8]} 28. f5 {[%clk 0:00:41.8]} 28... gxf5 {[%clk 0:00:40.9]} 29.
exf5 {[%clk 0:00:42.7]} 29... e4 {[%clk 0:00:41.4]} 30. Bh3 {[%clk 0:00:39.7]}
30... Qg7 {[%clk 0:00:36.5]} 31. f6 {[%clk 0:00:35.9]} 31... Qc7+ {[%clk
0:00:36.4]} 32. Qf4 {[%clk 0:00:34.1]} 32... Ne5 {[%clk 0:00:34.7]} 33. Kh1
{[%clk 0:00:29.4]} 33... Qxc3 {[%clk 0:00:34.3]} 34. Bg2 {[%clk 0:00:20.6]}
34... Ng6 {[%clk 0:00:32.9]} 35. Qg5 {[%clk 0:00:18.3]} 35... e3 {[%clk
0:00:29.2]} 36. Bf3 {[%clk 0:00:18.6]} 36... Qxf6 {[%clk 0:00:27.1]} 37. Qxe3
{[%clk 0:00:10.9]} 37... Nxh4 {[%clk 0:00:26]} 38. Be2 {[%clk 0:00:09.6]} 38...
Qc6+ {[%clk 0:00:23.8]} 0-1

[Event "*** Titled Tuesday Blitz"]
[Site "Chess.com"]
[Date "2020.05.19"]
[Round "2"]
[White "Eltaj_Safarli"]
[Black "lili_ani"]
[Result "1-0"]
[WhiteElo "3002"]
[BlackElo "2574"]
[TimeControl "180+1"]
[EndTime "12:18:38 PDT"]
[Termination "Eltaj_Safarli won on time"]

1. e4 {[%clk 0:03:00.9]} 1... c5 {[%clk 0:02:58.3]} 2. Nc3 {[%clk 0:03:00.8]}
2... Nc6 {[%clk 0:02:57.2]} 3. Bb5 {[%clk 0:03:01.2]} 3... Nd4 {[%clk
0:02:54.5]} 4. Nf3 {[%clk 0:03:01.5]} 4... Nxb5 {[%clk 0:02:50]} 5. Nxb5 {[%clk
0:03:02.4]} 5... e6 {[%clk 0:02:42.8]} 6. O-O {[%clk 0:03:01.2]} 6... a6 {[%clk
0:02:40.2]} 7. Nc3 {[%clk 0:03:01.2]} 7... b5 {[%clk 0:02:28.6]} 8. d4 {[%clk
0:03:00.7]} 8... cxd4 {[%clk 0:02:27.8]} 9. Qxd4 {[%clk 0:03:01.6]} 9... Bb7
{[%clk 0:02:18.3]} 10. Bf4 {[%clk 0:03:02]} 10... d6 {[%clk 0:02:04.9]} 11. Bg3
{[%clk 0:02:34.9]} 11... Nf6 {[%clk 0:01:54.5]} 12. Rfe1 {[%clk 0:02:34.3]}
12... Be7 {[%clk 0:01:52.5]} 13. Rad1 {[%clk 0:02:31.7]} 13... e5 {[%clk
0:01:46.4]} 14. Qd3 {[%clk 0:02:32.1]} 14... b4 {[%clk 0:01:26.8]} 15. Na4
{[%clk 0:02:26.8]} 15... Bc6 {[%clk 0:01:20.2]} 16. b3 {[%clk 0:02:03.6]} 16...
O-O {[%clk 0:01:00.3]} 17. Nb2 {[%clk 0:02:00.8]} 17... Nd7 {[%clk 0:00:50.1]}
18. Qe3 {[%clk 0:01:54.5]} 18... Bb5 {[%clk 0:00:48.4]} 19. c4 {[%clk
0:01:47.8]} 19... bxc3 {[%clk 0:00:47.8]} 20. Qxc3 {[%clk 0:01:48.4]} 20... Rc8
{[%clk 0:00:48]} 21. Qe3 {[%clk 0:01:48.2]} 21... a5 {[%clk 0:00:44.7]} 22. h3
{[%clk 0:01:40.1]} 22... Qb6 {[%clk 0:00:44.5]} 23. Qd2 {[%clk 0:01:33.6]} 23...
Nc5 {[%clk 0:00:41.3]} 24. Nh4 {[%clk 0:01:29.1]} 24... g6 {[%clk 0:00:40.4]}
25. Qh6 {[%clk 0:01:27.3]} 25... Ne6 {[%clk 0:00:38.4]} 26. Nf3 {[%clk
0:01:21.5]} 26... Rc2 {[%clk 0:00:34.1]} 27. Rd2 {[%clk 0:01:22]} 27... Rfc8
{[%clk 0:00:32.4]} 28. Nc4 {[%clk 0:01:22.4]} 28... R2xc4 {[%clk 0:00:28.3]} 29.
bxc4 {[%clk 0:01:22.3]} 29... Bxc4 {[%clk 0:00:29]} 30. Red1 {[%clk 0:01:16.3]}
30... Bf8 {[%clk 0:00:26.1]} 31. Qh4 {[%clk 0:01:13.4]} 31... a4 {[%clk
0:00:18.8]} 32. Ng5 {[%clk 0:01:12.3]} 32... Nxg5 {[%clk 0:00:18.5]} 33. Qxg5
{[%clk 0:01:13.2]} 33... Be6 {[%clk 0:00:18.6]} 34. Kh2 {[%clk 0:01:05.4]} 34...
a3 {[%clk 0:00:18.4]} 35. f4 {[%clk 0:01:05.4]} 35... h6 {[%clk 0:00:12.9]} 36.
Qh4 {[%clk 0:01:05.5]} 36... exf4 {[%clk 0:00:12.7]} 37. Qxf4 {[%clk 0:01:06.4]}
37... Rc3 {[%clk 0:00:11]} 38. Bf2 {[%clk 0:01:04.6]} 38... Qb5 {[%clk
0:00:09.9]} 39. Bd4 {[%clk 0:01:04.4]} 39... Rc4 {[%clk 0:00:09]} 40. Qf6 {[%clk
0:01:02.6]} 40... Rxd4 {[%clk 0:00:09.1]} 41. Qxd4 {[%clk 0:01:02.3]} 41... Bg7
{[%clk 0:00:09.5]} 42. Qe3 {[%clk 0:01:00.8]} 42... Be5+ {[%clk 0:00:09.6]} 43.
Kh1 {[%clk 0:01:01.3]} 43... g5 {[%clk 0:00:10]} 44. Qxa3 {[%clk 0:00:56.5]}
44... Qc4 {[%clk 0:00:08.5]} 45. Qe3 {[%clk 0:00:52.4]} 45... Bf4 {[%clk
0:00:08.7]} 46. Qd4 {[%clk 0:00:52.4]} 46... Qb5 {[%clk 0:00:07.3]} 47. Rb2
{[%clk 0:00:49.4]} 47... Qa5 {[%clk 0:00:04.8]} 48. Rb8+ {[%clk 0:00:48.6]}
48... Kh7 {[%clk 0:00:05.1]} 49. Qf6 {[%clk 0:00:42.9]} 1-0

[Event "*** Titled Tuesday Blitz"]
[Site "Chess.com"]
[Date "2020.05.19"]
[Round "2"]
[White "Slovak_fighter2000"]
[Black "Bulldog167"]
[Result "1-0"]
[WhiteElo "2529"]
[BlackElo "2782"]
[TimeControl "180+1"]
[EndTime "12:18:39 PDT"]
[Termination "Slovak_fighter2000 won by checkmate"]

1. d4 {[%clk 0:03:00.9]} 1... Nf6 {[%clk 0:03:00.1]} 2. Nf3 {[%clk 0:03:00.9]}
2... e6 {[%clk 0:03:00.5]} 3. Bf4 {[%clk 0:03:00.2]} 3... b6 {[%clk 0:03:00.6]}
4. e3 {[%clk 0:02:58.8]} 4... Bb7 {[%clk 0:03:01.3]} 5. Nbd2 {[%clk 0:02:59.3]}
5... c5 {[%clk 0:03:01.9]} 6. Nc4 {[%clk 0:02:59.5]} 6... cxd4 {[%clk
0:02:59.1]} 7. exd4 {[%clk 0:02:59]} 7... d6 {[%clk 0:02:57.8]} 8. c3 {[%clk
0:02:58.9]} 8... Be7 {[%clk 0:02:58]} 9. Be2 {[%clk 0:02:57.3]} 9... O-O {[%clk
0:02:58]} 10. O-O {[%clk 0:02:57.5]} 10... Qc7 {[%clk 0:02:57.5]} 11. h3 {[%clk
0:02:57]} 11... Nbd7 {[%clk 0:02:57.8]} 12. a4 {[%clk 0:02:56.4]} 12... a6
{[%clk 0:02:58.2]} 13. Bg3 {[%clk 0:02:55.5]} 13... Rfe8 {[%clk 0:02:55.8]} 14.
Ne3 {[%clk 0:02:55.3]} 14... Bf8 {[%clk 0:02:54.1]} 15. Nd2 {[%clk 0:02:45.4]}
15... g6 {[%clk 0:02:51.3]} 16. Bf3 {[%clk 0:02:45.2]} 16... Reb8 {[%clk
0:02:46.3]} 17. Bxb7 {[%clk 0:02:42.3]} 17... Qxb7 {[%clk 0:02:47.2]} 18. Qf3
{[%clk 0:02:41.6]} 18... Qxf3 {[%clk 0:02:46.9]} 19. Nxf3 {[%clk 0:02:41.3]}
19... b5 {[%clk 0:02:46.4]} 20. axb5 {[%clk 0:02:41.3]} 20... axb5 {[%clk
0:02:47.3]} 21. Nd2 {[%clk 0:02:32.7]} 21... Nb6 {[%clk 0:02:43.3]} 22. Rfc1
{[%clk 0:02:28.7]} 22... Nfd5 {[%clk 0:02:40.7]} 23. Nxd5 {[%clk 0:02:27.5]}
23... Nxd5 {[%clk 0:02:41.3]} 24. Kf1 {[%clk 0:02:18.9]} 24... f5 {[%clk
0:02:30.7]} 25. Ke2 {[%clk 0:02:07.8]} 25... Kf7 {[%clk 0:02:26.4]} 26. Nb3
{[%clk 0:02:00.3]} 26... Ra4 {[%clk 0:02:14.9]} 27. Kd3 {[%clk 0:01:44.2]} 27...
Rba8 {[%clk 0:02:11.7]} 28. Rxa4 {[%clk 0:01:41.1]} 28... bxa4 {[%clk
0:02:09.1]} 29. Ra1 {[%clk 0:01:37.6]} 29... f4 {[%clk 0:02:00.6]} 30. Bh2
{[%clk 0:01:36.3]} 30... Rb8 {[%clk 0:02:01.1]} 31. Nd2 {[%clk 0:01:27.1]} 31...
Rxb2 {[%clk 0:01:51.5]} 32. Rxa4 {[%clk 0:01:26.7]} 32... e5 {[%clk 0:01:46.3]}
33. dxe5 {[%clk 0:01:03.1]} 33... dxe5 {[%clk 0:01:47.2]} 34. Ra5 {[%clk
0:00:59.8]} 34... Ke6 {[%clk 0:01:38.2]} 35. Ne4 {[%clk 0:00:53.7]} 35... Be7
{[%clk 0:01:20.3]} 36. Ra6+ {[%clk 0:00:39.8]} 36... Kf7 {[%clk 0:01:20.6]} 37.
Ra5 {[%clk 0:00:37.4]} 37... Ke6 {[%clk 0:01:20.9]} 38. Ra6+ {[%clk 0:00:37.3]}
38... Kf5 {[%clk 0:01:11.2]} 39. g4+ {[%clk 0:00:31.2]} 39... fxg3 {[%clk
0:01:10.5]} 40. Nxg3+ {[%clk 0:00:31.6]} 40... Kg5 {[%clk 0:01:09.8]} 41. Ne4+
{[%clk 0:00:31.1]} 41... Kf5 {[%clk 0:00:46]} 42. Ng3+ {[%clk 0:00:30.7]} 42...
Kf4 {[%clk 0:00:46.6]} 43. Ne4+ {[%clk 0:00:26.9]} 43... Kf3 {[%clk 0:00:46.3]}
44. Bxe5 {[%clk 0:00:26.7]} 44... Rb1 {[%clk 0:00:43.3]} 45. Nd2+ {[%clk
0:00:26.3]} 45... Kxf2 {[%clk 0:00:42.5]} 46. Nxb1 {[%clk 0:00:27.2]} 46... Kg2
{[%clk 0:00:40.8]} 47. Kd4 {[%clk 0:00:24.4]} 47... Kxh3 {[%clk 0:00:33.6]} 48.
Kxd5 {[%clk 0:00:24.3]} 48... g5 {[%clk 0:00:34.5]} 49. Nd2 {[%clk 0:00:23.4]}
49... h5 {[%clk 0:00:34.6]} 50. c4 {[%clk 0:00:22.7]} 50... g4 {[%clk
0:00:35.1]} 51. Ne4 {[%clk 0:00:23]} 51... h4 {[%clk 0:00:35.3]} 52. c5 {[%clk
0:00:22.5]} 52... g3 {[%clk 0:00:35.7]} 53. Nxg3 {[%clk 0:00:22.2]} 53... hxg3
{[%clk 0:00:36.6]} 54. Bxg3 {[%clk 0:00:22.5]} 54... Kxg3 {[%clk 0:00:37.5]} 55.
c6 {[%clk 0:00:22.8]} 55... Kh2 {[%clk 0:00:37.5]} 56. c7 {[%clk 0:00:22.5]}
56... Bh4 {[%clk 0:00:38.4]} 57. c8=Q {[%clk 0:00:22.6]} 57... Bg3 {[%clk
0:00:39.3]} 58. Ra2+ {[%clk 0:00:22]} 58... Kh1 {[%clk 0:00:40.2]} 59. Qh3+
{[%clk 0:00:21.5]} 59... Bh2 {[%clk 0:00:40.4]} 60. Qg2# {[%clk 0:00:21.9]} 1-0

[Event "*** Titled Tuesday Blitz"]
[Site "Chess.com"]
[Date "2020.05.19"]
[Round "2"]
[White "doctorcristian"]
[Black "oykuince"]
[Result "1-0"]
[WhiteElo "2366"]
[BlackElo "1988"]
[TimeControl "180+1"]
[EndTime "12:18:39 PDT"]
[Termination "doctorcristian won by resignation"]

1. d4 {[%clk 0:03:00.9]} 1... Nf6 {[%clk 0:02:59.2]} 2. Nc3 {[%clk 0:03:00.4]}
2... d5 {[%clk 0:02:57.7]} 3. Bf4 {[%clk 0:02:59.6]} 3... e6 {[%clk 0:02:57.6]}
4. Nb5 {[%clk 0:02:58]} 4... Bd6 {[%clk 0:02:55.3]} 5. Nxd6+ {[%clk 0:02:55.8]}
5... cxd6 {[%clk 0:02:56.2]} 6. e3 {[%clk 0:02:56.7]} 6... O-O {[%clk
0:02:56.1]} 7. Nf3 {[%clk 0:02:56.3]} 7... Nc6 {[%clk 0:02:55.4]} 8. Be2 {[%clk
0:02:55.7]} 8... Re8 {[%clk 0:02:55.6]} 9. O-O {[%clk 0:02:55.2]} 9... e5 {[%clk
0:02:55.9]} 10. Bg5 {[%clk 0:02:54.1]} 10... Be6 {[%clk 0:02:52.2]} 11. c3
{[%clk 0:02:53.2]} 11... h6 {[%clk 0:02:51.7]} 12. Bh4 {[%clk 0:02:52.1]} 12...
a6 {[%clk 0:02:18.6]} 13. Qb3 {[%clk 0:02:35.4]} 13... b5 {[%clk 0:01:53.5]} 14.
a4 {[%clk 0:02:24.4]} 14... e4 {[%clk 0:01:44.6]} 15. Nd2 {[%clk 0:02:23.2]}
15... Na5 {[%clk 0:01:39.4]} 16. Qa3 {[%clk 0:02:18.7]} 16... Nc4 {[%clk
0:01:39.4]} 17. Nxc4 {[%clk 0:02:17.3]} 17... bxc4 {[%clk 0:01:35.6]} 18. Bg3
{[%clk 0:02:15.2]} 18... a5 {[%clk 0:01:28.3]} 19. Qxd6 {[%clk 0:02:12.6]} 19...
Qxd6 {[%clk 0:01:27.7]} 20. Bxd6 {[%clk 0:02:12.1]} 20... Ra6 {[%clk 0:01:27.7]}
21. Ba3 {[%clk 0:02:07.7]} 21... Rb8 {[%clk 0:01:24.1]} 22. b4 {[%clk
0:02:04.8]} 22... axb4 {[%clk 0:01:16.9]} 23. Bxb4 {[%clk 0:02:03.9]} 23... Bd7
{[%clk 0:01:17.2]} 24. a5 {[%clk 0:02:03.5]} 24... Rb5 {[%clk 0:01:06.9]} 25. f3
{[%clk 0:02:02.4]} 25... g5 {[%clk 0:00:59.1]} 26. Rfb1 {[%clk 0:01:48.8]} 26...
exf3 {[%clk 0:00:54.9]} 27. gxf3 {[%clk 0:01:40.8]} 27... Bf5 {[%clk 0:00:53.9]}
28. Kf2 {[%clk 0:01:36.2]} 28... Bxb1 {[%clk 0:00:52.3]} 29. Rxb1 {[%clk
0:01:35.9]} 29... Raxa5 {[%clk 0:00:51.2]} 30. Rb2 {[%clk 0:01:34]} 30... Ra1
{[%clk 0:00:46.7]} 31. Bf1 {[%clk 0:01:29]} 31... Ne8 {[%clk 0:00:43.9]} 32. Bh3
{[%clk 0:01:25.1]} 32... Nc7 {[%clk 0:00:36.6]} 33. Re2 {[%clk 0:01:11.9]} 33...
Na6 {[%clk 0:00:33.3]} 34. Bd6 {[%clk 0:01:10.2]} 34... Rbb1 {[%clk 0:00:31.9]}
35. e4 {[%clk 0:01:08]} 35... dxe4 {[%clk 0:00:24.6]} 36. fxe4 {[%clk
0:01:06.3]} 36... h5 {[%clk 0:00:23.6]} 37. e5 {[%clk 0:00:56.6]} 37... g4
{[%clk 0:00:23.1]} 38. Bg2 {[%clk 0:00:55.8]} 38... Rc1 {[%clk 0:00:20.5]} 39.
d5 {[%clk 0:00:49.3]} 39... Rxc3 {[%clk 0:00:20]} 40. e6 {[%clk 0:00:49.1]}
40... fxe6 {[%clk 0:00:19.5]} 41. dxe6 {[%clk 0:00:48]} 41... Ra5 {[%clk
0:00:16.6]} 42. e7 {[%clk 0:00:45.2]} 42... Rf5+ {[%clk 0:00:16.7]} 43. Ke1
{[%clk 0:00:42.5]} 43... Rd3 {[%clk 0:00:09.7]} 44. e8=Q+ {[%clk 0:00:41.1]} 1-0

[Event "*** Titled Tuesday Blitz"]
[Site "Chess.com"]
[Date "2020.05.19"]
[Round "2"]
[White "Harsha_Bharathakoti"]
[Black "MateSchmate"]
[Result "0-1"]
[WhiteElo "2745"]
[BlackElo "2518"]
[TimeControl "180+1"]
[EndTime "12:18:40 PDT"]
[Termination "MateSchmate won by checkmate"]

1. Nf3 {[%clk 0:03:00.9]} 1... Nf6 {[%clk 0:02:59.7]} 2. c4 {[%clk 0:03:00.9]}
2... c5 {[%clk 0:02:59.8]} 3. Nc3 {[%clk 0:03:00.1]} 3... b6 {[%clk 0:03:00.2]}
4. d4 {[%clk 0:02:53.1]} 4... cxd4 {[%clk 0:03:01.1]} 5. Nxd4 {[%clk 0:02:53.9]}
5... Bb7 {[%clk 0:03:00.8]} 6. f3 {[%clk 0:02:54.6]} 6... a6 {[%clk 0:02:59.9]}
7. e4 {[%clk 0:02:54.7]} 7... d6 {[%clk 0:03:00.5]} 8. Be2 {[%clk 0:02:55.3]}
8... e6 {[%clk 0:03:00.5]} 9. Be3 {[%clk 0:02:56]} 9... Be7 {[%clk 0:03:01.1]}
10. O-O {[%clk 0:02:56.7]} 10... Nbd7 {[%clk 0:03:00.8]} 11. a4 {[%clk
0:02:56.3]} 11... Qc7 {[%clk 0:03:00.8]} 12. a5 {[%clk 0:02:56.1]} 12... bxa5
{[%clk 0:03:00.5]} 13. Nb3 {[%clk 0:02:56.6]} 13... O-O {[%clk 0:02:51.6]} 14.
Nxa5 {[%clk 0:02:56.7]} 14... Rfb8 {[%clk 0:02:48.9]} 15. b4 {[%clk 0:02:45.5]}
15... Ne5 {[%clk 0:02:42.1]} 16. Qa4 {[%clk 0:01:09.2]} 16... Nc6 {[%clk
0:02:21.6]} 17. Nxb7 {[%clk 0:01:06.9]} 17... Qxb7 {[%clk 0:02:18.1]} 18. b5
{[%clk 0:00:45.3]} 18... axb5 {[%clk 0:02:17.4]} 19. Qxb5 {[%clk 0:00:46.2]}
19... Rxa1 {[%clk 0:02:14.5]} 20. Rxa1 {[%clk 0:00:45.1]} 20... Qc8 {[%clk
0:02:02.4]} 21. Qa4 {[%clk 0:00:44.6]} 21... h6 {[%clk 0:01:59.3]} 22. Nb5
{[%clk 0:00:43.2]} 22... d5 {[%clk 0:01:51.3]} 23. cxd5 {[%clk 0:00:23.6]} 23...
exd5 {[%clk 0:01:51.6]} 24. Rc1 {[%clk 0:00:24.3]} 24... Qd7 {[%clk 0:01:45.7]}
25. Bf4 {[%clk 0:00:22.2]} 25... Rc8 {[%clk 0:01:42.5]} 26. exd5 {[%clk
0:00:13.7]} 26... Nxd5 {[%clk 0:01:41]} 27. Bg3 {[%clk 0:00:14]} 27... Bg5
{[%clk 0:01:37.9]} 28. Rd1 {[%clk 0:00:13.8]} 28... Qe6 {[%clk 0:01:29.5]} 29.
Bc4 {[%clk 0:00:14.1]} 29... Nce7 {[%clk 0:00:55.4]} 30. Nd6 {[%clk 0:00:06.8]}
30... Be3+ {[%clk 0:00:45.3]} 31. Kh1 {[%clk 0:00:06.6]} 31... Rd8 {[%clk
0:00:43.3]} 32. Ne4 {[%clk 0:00:05.9]} 32... Kh7 {[%clk 0:00:29.8]} 33. Qb3
{[%clk 0:00:06.1]} 33... Ba7 {[%clk 0:00:23.7]} 34. Nc3 {[%clk 0:00:06.5]} 34...
Nxc3 {[%clk 0:00:19.1]} 35. Rxd8 {[%clk 0:00:06.6]} 35... Qe3 {[%clk 0:00:13.9]}
36. Qc2+ {[%clk 0:00:05.5]} 36... g6 {[%clk 0:00:13.7]} 37. Rd1 {[%clk
0:00:01.7]} 37... Nxd1 {[%clk 0:00:12.9]} 38. Qxd1 {[%clk 0:00:02.6]} 38... Nf5
{[%clk 0:00:13.3]} 39. Bxf7 {[%clk 0:00:01.2]} 39... Nxg3+ {[%clk 0:00:12.4]}
40. hxg3 {[%clk 0:00:01.6]} 40... Qf2 {[%clk 0:00:13.3]} 41. Qd6 {[%clk
0:00:01.1]} 41... Qg1# {[%clk 0:00:12.8]} 0-1

[Event "*** Titled Tuesday Blitz"]
[Site "Chess.com"]
[Date "2020.05.19"]
[Round "2"]
[White "lupta_robin"]
[Black "1f3_2g41-0"]
[Result "1-0"]
[WhiteElo "2622"]
[BlackElo "2310"]
[TimeControl "180+1"]
[EndTime "12:18:40 PDT"]
[Termination "lupta_robin won by resignation"]

1. e4 {[%clk 0:03:00.9]} 1... c5 {[%clk 0:02:58.4]} 2. Nf3 {[%clk 0:03:00.5]}
2... d6 {[%clk 0:02:57.3]} 3. d4 {[%clk 0:03:00.6]} 3... cxd4 {[%clk 0:02:58.2]}
4. Nxd4 {[%clk 0:02:58.7]} 4... Nf6 {[%clk 0:02:58.7]} 5. Nc3 {[%clk 0:02:58.6]}
5... a6 {[%clk 0:02:58.9]} 6. Be3 {[%clk 0:02:56.8]} 6... e5 {[%clk 0:02:53.7]}
7. Nb3 {[%clk 0:02:55.1]} 7... Be7 {[%clk 0:02:52.8]} 8. f3 {[%clk 0:02:54.5]}
8... O-O {[%clk 0:02:52.1]} 9. Qd2 {[%clk 0:02:52.8]} 9... Be6 {[%clk
0:02:52.2]} 10. O-O-O {[%clk 0:02:42.4]} 10... b5 {[%clk 0:02:51.9]} 11. g4
{[%clk 0:02:40.9]} 11... Nbd7 {[%clk 0:02:51.1]} 12. g5 {[%clk 0:02:37.4]} 12...
Nh5 {[%clk 0:02:50.1]} 13. Rg1 {[%clk 0:02:31.1]} 13... Nb6 {[%clk 0:02:47.9]}
14. Nd5 {[%clk 0:02:08]} 14... Nxd5 {[%clk 0:01:25.6]} 15. exd5 {[%clk 0:02:08]}
15... Bf5 {[%clk 0:01:25.8]} 16. Na5 {[%clk 0:01:36.6]} 16... Qd7 {[%clk
0:01:05.3]} 17. Nc6 {[%clk 0:01:31.7]} 17... f6 {[%clk 0:00:53]} 18. Bd3 {[%clk
0:01:15.2]} 18... Bxd3 {[%clk 0:00:46.3]} 19. Qxd3 {[%clk 0:01:13.3]} 19... fxg5
{[%clk 0:00:42.7]} 20. Bxg5 {[%clk 0:01:12.1]} 20... Nf4 {[%clk 0:00:34]} 21.
Nxe7+ {[%clk 0:00:50]} 21... Kh8 {[%clk 0:00:29.5]} 22. Qe4 {[%clk 0:00:44.2]}
22... Nh3 {[%clk 0:00:26.8]} 23. Qh4 {[%clk 0:00:23.5]} 23... Nxg1 {[%clk
0:00:22.7]} 24. Ng6+ {[%clk 0:00:20.8]} 24... Kg8 {[%clk 0:00:20.3]} 25. Nxf8
{[%clk 0:00:21.2]} 25... Nxf3 {[%clk 0:00:15]} 26. Qxh7+ {[%clk 0:00:20]} 26...
Kxf8 {[%clk 0:00:13.5]} 27. Qh8+ {[%clk 0:00:19.1]} 27... Kf7 {[%clk 0:00:13.9]}
28. Qh5+ {[%clk 0:00:19.4]} 28... Kg8 {[%clk 0:00:13.1]} 29. Qxf3 {[%clk
0:00:19.9]} 29... Rf8 {[%clk 0:00:13.3]} 30. Qe4 {[%clk 0:00:19.1]} 30... Rf5
{[%clk 0:00:13.1]} 31. Be3 {[%clk 0:00:18.8]} 31... Qf7 {[%clk 0:00:13.4]} 32.
a3 {[%clk 0:00:16.6]} 32... Qg6 {[%clk 0:00:13.7]} 33. Kb1 {[%clk 0:00:15.6]}
33... Qh7 {[%clk 0:00:13.7]} 34. Ka2 {[%clk 0:00:15.1]} 34... Qh5 {[%clk
0:00:13.8]} 35. h4 {[%clk 0:00:14.3]} 35... Rf3 {[%clk 0:00:11.6]} 36. Rg1
{[%clk 0:00:14.1]} 36... Rf5 {[%clk 0:00:10.6]} 37. Rg5 {[%clk 0:00:13.9]} 37...
Rxg5 {[%clk 0:00:08.4]} 38. hxg5 {[%clk 0:00:14.4]} 38... Qd1 {[%clk 0:00:07.9]}
39. g6 {[%clk 0:00:13.6]} 39... Qe1 {[%clk 0:00:07]} 40. Qf5 {[%clk 0:00:12]}
40... Qf1 {[%clk 0:00:03]} 1-0